[Event "Late Titled Tuesday Blitz February 8 2022"]
[White "Niemann, Hans Moke"]
[Black "Kravtsiv, Martyn"]
[WhiteFideId "2093596"]
[BlackFideId "14113147"]
[WhiteElo "2636"]
[BlackElo "2694"]
[Result "1-0"]
[Round "10"]
[TimeControl "180+1"]
[Date "2022.02.08"]
[WhiteClock "0:01:24"]
[BlackClock "0:01:03"]

1. d4 {[%clk 0:03:00]}  d5 {[%clk 0:02:59]} 2. Nc3 {[%clk 0:02:57]}  e6 {[%clk 0:02:57]} 3. Bf4 {[%clk 0:02:56]}  Bb4 {[%clk 0:02:54]} 4. Qd3 {[%clk 0:02:55]}  Nf6 {[%clk 0:02:53]} 5. a3 {[%clk 0:02:54]}  Bd6 {[%clk 0:02:50]} 6. Bxd6 {[%clk 0:02:53]}  Qxd6 {[%clk 0:02:49]} 7. e4 {[%clk 0:02:52]}  Qc6 {[%clk 0:02:30]} 8. e5 {[%clk 0:02:38]}  Ne4 {[%clk 0:02:28]} 9. Nd1 {[%clk 0:02:29]}  h6 {[%clk 0:02:17]} 10. f3 {[%clk 0:02:25]}  Ng5 {[%clk 0:02:17]} 11. h4 {[%clk 0:02:25]}  Nh7 {[%clk 0:02:16]} 12. f4 {[%clk 0:02:25]}  b6 {[%clk 0:02:15]} 13. Qg3 {[%clk 0:02:17]}  g6 {[%clk 0:02:13]} 14. h5 {[%clk 0:02:16]}  g5 {[%clk 0:02:10]} 15. Bd3 {[%clk 0:02:14]}  gxf4 {[%clk 0:01:53]} 16. Qg7 {[%clk 0:02:11]}  Rf8 {[%clk 0:01:53]} 17. Qxh7 {[%clk 0:02:08]}  Ba6 {[%clk 0:01:50]} 18. Ne2 {[%clk 0:02:07]}  Bxd3 {[%clk 0:01:46]} 19. Qxd3 {[%clk 0:02:00]}  Nd7 {[%clk 0:01:46]} 20. Nxf4 {[%clk 0:01:59]}  O-O-O {[%clk 0:01:46]} 21. Ne3 {[%clk 0:02:00]}  Rg8 {[%clk 0:01:46]} 22. O-O-O {[%clk 0:01:56]}  Rg3 {[%clk 0:01:44]} 23. Ne2 {[%clk 0:01:55]}  Rg7 {[%clk 0:01:41]} 24. g4 {[%clk 0:01:54]}  f6 {[%clk 0:01:41]} 25. exf6 {[%clk 0:01:47]}  Nxf6 {[%clk 0:01:41]} 26. Nc3 {[%clk 0:01:42]}  Rdg8 {[%clk 0:01:39]} 27. Rhf1 {[%clk 0:01:40]}  Nxg4 {[%clk 0:01:36]} 28. Nxg4 {[%clk 0:01:40]}  Rxg4 {[%clk 0:01:36]} 29. Qe2 {[%clk 0:01:39]}  Rg2 {[%clk 0:01:34]} 30. Rf2 {[%clk 0:01:38]}  Rxf2 {[%clk 0:01:31]} 31. Qxf2 {[%clk 0:01:39]}  Rg5 {[%clk 0:01:31]} 32. Qf8+ {[%clk 0:01:38]}  Kb7 {[%clk 0:01:30]} 33. Qxh6 {[%clk 0:01:38]}  Rg2 {[%clk 0:01:23]} 34. Qe3 {[%clk 0:01:36]}  Rh2 {[%clk 0:01:19]} 35. Qe5 {[%clk 0:01:34]}  Rh3 {[%clk 0:01:16]} 36. Re1 {[%clk 0:01:30]}  Qc4 {[%clk 0:01:05]} 37. Qxe6 {[%clk 0:01:27]}  Rxh5 {[%clk 0:01:04]} 38. Qe3 {[%clk 0:01:25]}  a5 {[%clk 0:01:03]} 39. Qe2 {[%clk 0:01:24]} 1-0


[Site "https://www.chess.com"]

[Event "Late Titled Tuesday Blitz February 8 2022"]
[White "Nihal Sarin"]
[Black "Goltseva, Ekaterina"]
[WhiteFideId "25092340"]
[BlackFideId "24173770"]
[WhiteElo "2705"]
[BlackElo "2140"]
[Result "0-1"]
[Round "10"]
[TimeControl "180+1"]
[Date "2022.02.08"]
[WhiteClock "0:00:09"]
[BlackClock "0:00:30"]

1. e4 {[%clk 0:01:14]}  e5 {[%clk 0:02:56]} 2. Nf3 {[%clk 0:01:13]}  Nc6 {[%clk 0:02:56]} 3. Bb5 {[%clk 0:01:13]}  a6 {[%clk 0:02:56]} 4. Ba4 {[%clk 0:01:14]}  Nf6 {[%clk 0:02:57]} 5. O-O {[%clk 0:01:14]}  Be7 {[%clk 0:02:57]} 6. d3 {[%clk 0:01:14]}  d6 {[%clk 0:02:56]} 7. c3 {[%clk 0:01:14]}  O-O {[%clk 0:02:56]} 8. h3 {[%clk 0:01:14]}  b5 {[%clk 0:02:57]} 9. Bc2 {[%clk 0:01:14]}  Bb7 {[%clk 0:02:58]} 10. Re1 {[%clk 0:01:15]}  Nb8 {[%clk 0:02:56]} 11. Nbd2 {[%clk 0:01:16]}  c5 {[%clk 0:02:56]} 12. Nf1 {[%clk 0:01:17]}  Re8 {[%clk 0:02:55]} 13. Ng3 {[%clk 0:01:18]}  g6 {[%clk 0:02:44]} 14. d4 {[%clk 0:01:18]}  Nbd7 {[%clk 0:02:44]} 15. Bg5 {[%clk 0:01:17]}  Qc7 {[%clk 0:02:34]} 16. Qd2 {[%clk 0:01:17]}  Rac8 {[%clk 0:02:32]} 17. Bb3 {[%clk 0:01:15]}  exd4 {[%clk 0:02:27]} 18. cxd4 {[%clk 0:01:15]}  c4 {[%clk 0:02:27]} 19. Bc2 {[%clk 0:01:16]}  c3 {[%clk 0:02:27]} 20. bxc3 {[%clk 0:01:16]}  Qxc3 {[%clk 0:02:27]} 21. Qxc3 {[%clk 0:01:16]}  Rxc3 {[%clk 0:02:28]} 22. Bb3 {[%clk 0:01:17]}  Nb6 {[%clk 0:02:00]} 23. e5 {[%clk 0:01:17]}  dxe5 {[%clk 0:01:59]} 24. Nxe5 {[%clk 0:01:18]}  Nfd5 {[%clk 0:01:52]} 25. Bxe7 {[%clk 0:01:18]}  Rxe7 {[%clk 0:01:53]} 26. Ne4 {[%clk 0:01:19]}  Rcc7 {[%clk 0:01:47]} 27. Nc5 {[%clk 0:01:18]}  f6 {[%clk 0:01:43]} 28. Ng4 {[%clk 0:01:17]}  Kg7 {[%clk 0:01:43]} 29. Rxe7+ {[%clk 0:01:16]}  Rxe7 {[%clk 0:01:43]} 30. Rc1 {[%clk 0:01:16]}  Nf4 {[%clk 0:01:35]} 31. Kh2 {[%clk 0:01:09]}  Bxg2 {[%clk 0:01:28]} 32. Ne3 {[%clk 0:01:00]}  Bxh3 {[%clk 0:01:26]} 33. Nxa6 {[%clk 0:00:59]}  Bc8 {[%clk 0:01:11]} 34. Nb4 {[%clk 0:00:56]}  Bb7 {[%clk 0:01:08]} 35. Rc5 {[%clk 0:00:56]}  Nc4 {[%clk 0:00:57]} 36. Nxc4 {[%clk 0:00:43]}  bxc4 {[%clk 0:00:57]} 37. Bxc4 {[%clk 0:00:44]}  Kh6 {[%clk 0:00:47]} 38. a4 {[%clk 0:00:44]}  Re1 {[%clk 0:00:37]} 39. d5 {[%clk 0:00:44]}  Rc1 {[%clk 0:00:35]} 40. d6 {[%clk 0:00:18]}  Rd1 {[%clk 0:00:33]} 41. Rc7 {[%clk 0:00:10]}  Rh1+ {[%clk 0:00:30]} 42. Kg3 {[%clk 0:00:10]}  Nh5+ {[%clk 0:00:30]} 43. Kg4 {[%clk 0:00:09]}  f5# {[%clk 0:00:30]} 0-1


[Site "https://www.chess.com"]

[Event "Late Titled Tuesday Blitz February 8 2022"]
[White "Noboa Silva, Kevin"]
[Black "Ladan, Nicholas"]
[WhiteFideId "3618471"]
[BlackFideId "30918855"]
[WhiteElo "2161"]
[BlackElo "2316"]
[Result "0-1"]
[Round "10"]
[TimeControl "180+1"]
[Date "2022.02.09"]
[WhiteClock "0:01:04"]
[BlackClock "0:00:32"]

1. e4 {[%clk 0:03:00]}  e5 {[%clk 0:02:59]} 2. Nf3 {[%clk 0:02:59]}  Nc6 {[%clk 0:03:00]} 3. d4 {[%clk 0:02:59]}  exd4 {[%clk 0:03:00]} 4. Nxd4 {[%clk 0:03:00]}  Bc5 {[%clk 0:03:00]} 5. Nb3 {[%clk 0:03:00]}  Bb6 {[%clk 0:03:00]} 6. Nc3 {[%clk 0:03:00]}  Nge7 {[%clk 0:03:00]} 7. Qe2 {[%clk 0:03:00]}  O-O {[%clk 0:03:00]} 8. Be3 {[%clk 0:02:58]}  f5 {[%clk 0:02:59]} 9. f4 {[%clk 0:02:57]}  fxe4 {[%clk 0:02:55]} 10. O-O-O {[%clk 0:02:56]}  d5 {[%clk 0:02:44]} 11. g3 {[%clk 0:02:45]}  Nf5 {[%clk 0:02:06]} 12. Bxb6 {[%clk 0:02:41]}  axb6 {[%clk 0:02:06]} 13. Kb1 {[%clk 0:02:37]}  Nd6 {[%clk 0:01:58]} 14. Nxd5 {[%clk 0:02:31]}  Be6 {[%clk 0:01:55]} 15. Nc3 {[%clk 0:02:23]}  Qe7 {[%clk 0:01:48]} 16. Bg2 {[%clk 0:02:18]}  Bxb3 {[%clk 0:01:35]} 17. cxb3 {[%clk 0:02:10]}  Rfe8 {[%clk 0:01:28]} 18. Rhe1 {[%clk 0:02:07]}  Nb4 {[%clk 0:01:18]} 19. Qc4+ {[%clk 0:01:52]}  Nxc4 {[%clk 0:01:17]} 20. bxc4 {[%clk 0:01:50]}  e3 {[%clk 0:01:11]} 21. Bxb7 {[%clk 0:01:48]}  Rad8 {[%clk 0:01:07]} 22. a3 {[%clk 0:01:42]}  Rxd1+ {[%clk 0:01:02]} 23. Nxd1 {[%clk 0:01:39]}  e2 {[%clk 0:00:58]} 24. Nc3 {[%clk 0:01:37]}  Nd3 {[%clk 0:00:53]} 25. Rxe2 {[%clk 0:01:34]}  Qxe2 {[%clk 0:00:53]} 26. Nxe2 {[%clk 0:01:34]}  Rxe2 {[%clk 0:00:54]} 27. b4 {[%clk 0:01:32]}  Rb2+ {[%clk 0:00:54]} 28. Ka1 {[%clk 0:01:32]}  Rxh2 {[%clk 0:00:55]} 29. Be4 {[%clk 0:01:25]}  Nf2 {[%clk 0:00:48]} 30. Bd5+ {[%clk 0:01:20]}  Kf8 {[%clk 0:00:47]} 31. a4 {[%clk 0:01:19]}  Nd3 {[%clk 0:00:44]} 32. a5 {[%clk 0:01:19]}  Nxb4 {[%clk 0:00:42]} 33. axb6 {[%clk 0:01:18]}  cxb6 {[%clk 0:00:42]} 34. Be4 {[%clk 0:01:15]}  Ke7 {[%clk 0:00:42]} 35. Kb1 {[%clk 0:01:12]}  Kd6 {[%clk 0:00:42]} 36. g4 {[%clk 0:01:11]}  Kc5 {[%clk 0:00:42]} 37. g5 {[%clk 0:01:11]}  Kxc4 {[%clk 0:00:42]} 38. f5 {[%clk 0:01:12]}  Kc3 {[%clk 0:00:37]} 39. f6 {[%clk 0:01:10]}  gxf6 {[%clk 0:00:37]} 40. gxf6 {[%clk 0:01:10]}  Rf2 {[%clk 0:00:37]} 41. Bd3 {[%clk 0:01:04]}  Kxd3 {[%clk 0:00:33]} 42. f7 {[%clk 0:01:04]}  Kc3 {[%clk 0:00:32]} 43. f8=Q {[%clk 0:01:04]}  Rxf8 {[%clk 0:00:32]} 0-1


[Site "https://www.chess.com"]

[Event "Late Titled Tuesday Blitz February 8 2022"]
[White "P., Komal Kishore"]
[Black "Osiecki, Stanislaw"]
[WhiteFideId "5016703"]
[BlackFideId "1102990"]
[WhiteElo "2028"]
[BlackElo "2127"]
[Result "1-0"]
[Round "10"]
[TimeControl "180+1"]
[Date "2022.02.09"]
[WhiteClock "0:00:18"]
[BlackClock "0:00:08"]

1. e4 {[%clk 0:03:00]}  e6 {[%clk 0:02:59]} 2. d4 {[%clk 0:03:00]}  d5 {[%clk 0:03:00]} 3. Nd2 {[%clk 0:02:57]}  c5 {[%clk 0:02:58]} 4. exd5 {[%clk 0:02:56]}  exd5 {[%clk 0:02:57]} 5. Ngf3 {[%clk 0:02:55]}  cxd4 {[%clk 0:02:56]} 6. Nxd4 {[%clk 0:02:44]}  Nc6 {[%clk 0:02:56]} 7. N2f3 {[%clk 0:02:42]}  Bd6 {[%clk 0:02:55]} 8. Bb5 {[%clk 0:02:40]}  Bd7 {[%clk 0:02:55]} 9. O-O {[%clk 0:02:40]}  Nge7 {[%clk 0:02:54]} 10. Re1 {[%clk 0:02:39]}  O-O {[%clk 0:02:53]} 11. c3 {[%clk 0:02:39]}  h6 {[%clk 0:02:51]} 12. Bd3 {[%clk 0:02:28]}  Nxd4 {[%clk 0:02:51]} 13. Nxd4 {[%clk 0:02:27]}  Nc6 {[%clk 0:02:51]} 14. Bc2 {[%clk 0:02:14]}  Nxd4 {[%clk 0:02:45]} 15. Qxd4 {[%clk 0:02:11]}  Bc6 {[%clk 0:02:27]} 16. Qd3 {[%clk 0:02:09]}  f5 {[%clk 0:02:26]} 17. Be3 {[%clk 0:02:04]}  Qf6 {[%clk 0:02:25]} 18. Bd4 {[%clk 0:02:03]}  Qg6 {[%clk 0:02:24]} 19. Re2 {[%clk 0:01:56]}  Rae8 {[%clk 0:02:23]} 20. Rae1 {[%clk 0:01:50]}  Rxe2 {[%clk 0:02:23]} 21. Qxe2 {[%clk 0:01:46]}  Re8 {[%clk 0:02:17]} 22. Qd1 {[%clk 0:01:43]}  Rxe1+ {[%clk 0:02:16]} 23. Qxe1 {[%clk 0:01:44]}  Qh5 {[%clk 0:02:08]} 24. g3 {[%clk 0:01:40]}  Kf7 {[%clk 0:02:02]} 25. Bxa7 {[%clk 0:01:32]}  Qg4 {[%clk 0:01:54]} 26. Bd4 {[%clk 0:01:28]}  g5 {[%clk 0:01:50]} 27. Bd1 {[%clk 0:01:23]}  Qh3 {[%clk 0:01:44]} 28. Qf1 {[%clk 0:01:23]}  Qxf1+ {[%clk 0:01:36]} 29. Kxf1 {[%clk 0:01:23]}  b5 {[%clk 0:01:32]} 30. Bb3 {[%clk 0:01:23]}  f4 {[%clk 0:01:28]} 31. Kg2 {[%clk 0:01:22]}  Ke6 {[%clk 0:01:24]} 32. Kf3 {[%clk 0:01:21]}  Kf5 {[%clk 0:01:21]} 33. Bc2+ {[%clk 0:01:20]}  Ke6 {[%clk 0:01:21]} 34. gxf4 {[%clk 0:01:19]}  Bxf4 {[%clk 0:01:20]} 35. h4 {[%clk 0:01:19]}  Bc1 {[%clk 0:01:12]} 36. b3 {[%clk 0:01:17]}  gxh4 {[%clk 0:01:10]} 37. Kg4 {[%clk 0:01:16]}  Bg5 {[%clk 0:01:07]} 38. f4 {[%clk 0:01:15]}  Bd8 {[%clk 0:01:01]} 39. Bf5+ {[%clk 0:01:15]}  Kf7 {[%clk 0:01:01]} 40. Kh5 {[%clk 0:01:14]}  Bf6 {[%clk 0:00:38]} 41. Bg6+ {[%clk 0:01:08]}  Kg7 {[%clk 0:00:37]} 42. Bf5 {[%clk 0:00:43]}  Be8+ {[%clk 0:00:26]} 43. Kg4 {[%clk 0:00:42]}  h5+ {[%clk 0:00:22]} 44. Kh3 {[%clk 0:00:40]}  Bg6 {[%clk 0:00:21]} 45. Be6 {[%clk 0:00:39]}  Bxd4 {[%clk 0:00:20]} 46. cxd4 {[%clk 0:00:38]}  Kf6 {[%clk 0:00:20]} 47. Bxd5 {[%clk 0:00:37]}  Kf5 {[%clk 0:00:17]} 48. b4 {[%clk 0:00:31]}  Be8 {[%clk 0:00:14]} 49. Kxh4 {[%clk 0:00:27]}  Kxf4 {[%clk 0:00:14]} 50. Be6 {[%clk 0:00:25]}  Ke3 {[%clk 0:00:14]} 51. d5 {[%clk 0:00:25]}  Kd4 {[%clk 0:00:10]} 52. d6 {[%clk 0:00:23]}  Kc3 {[%clk 0:00:10]} 53. d7 {[%clk 0:00:21]}  Bxd7 {[%clk 0:00:09]} 54. Bxd7 {[%clk 0:00:21]}  Kxb4 {[%clk 0:00:10]} 55. Kxh5 {[%clk 0:00:20]}  Ka3 {[%clk 0:00:08]} 56. Be6 {[%clk 0:00:20]}  Kb4 {[%clk 0:00:08]} 57. Bb3 {[%clk 0:00:20]}  Kc5 {[%clk 0:00:07]} 58. Kg5 {[%clk 0:00:20]}  Kb4 {[%clk 0:00:07]} 59. Kf4 {[%clk 0:00:20]}  Kc3 {[%clk 0:00:08]} 60. Ke5 {[%clk 0:00:20]}  b4 {[%clk 0:00:08]} 61. Kd5 {[%clk 0:00:19]}  Kb2 {[%clk 0:00:08]} 62. Kc5 {[%clk 0:00:19]}  Ka3 {[%clk 0:00:08]} 63. Kb5 {[%clk 0:00:18]}  Kb2 {[%clk 0:00:08]} 64. Kxb4 {[%clk 0:00:18]}  Ka1 {[%clk 0:00:08]} 65. a4 {[%clk 0:00:18]} 1-0


[Site "https://www.chess.com"]

[Event "Late Titled Tuesday Blitz February 8 2022"]
[White "Papp, Petra"]
[Black "Roman, Rodrigo"]
[WhiteFideId "739049"]
[BlackFideId "3701220"]
[WhiteElo "2259"]
[BlackElo "2001"]
[Result "1/2-1/2"]
[Round "10"]
[TimeControl "180+1"]
[Date "2022.02.09"]
[WhiteClock "0:00:02"]
[BlackClock "0:00:08"]

1. e4 {[%clk 0:03:00]}  e5 {[%clk 0:02:56]} 2. Nf3 {[%clk 0:02:59]}  Nc6 {[%clk 0:02:56]} 3. Bc4 {[%clk 0:02:59]}  Nf6 {[%clk 0:02:56]} 4. d3 {[%clk 0:02:58]}  Bc5 {[%clk 0:02:54]} 5. O-O {[%clk 0:02:58]}  O-O {[%clk 0:02:54]} 6. h3 {[%clk 0:02:58]}  d6 {[%clk 0:02:52]} 7. Re1 {[%clk 0:02:58]}  Be6 {[%clk 0:02:52]} 8. Bxe6 {[%clk 0:02:56]}  fxe6 {[%clk 0:02:53]} 9. a4 {[%clk 0:02:55]}  a5 {[%clk 0:02:51]} 10. c3 {[%clk 0:02:55]}  Qe7 {[%clk 0:02:50]} 11. Nbd2 {[%clk 0:02:54]}  Nh5 {[%clk 0:02:48]} 12. Nf1 {[%clk 0:02:54]}  Nf4 {[%clk 0:02:46]} 13. Be3 {[%clk 0:02:51]}  Bxe3 {[%clk 0:02:45]} 14. Rxe3 {[%clk 0:02:47]}  Rf6 {[%clk 0:02:44]} 15. h4 {[%clk 0:02:23]}  Rg6 {[%clk 0:02:36]} 16. g3 {[%clk 0:02:21]}  Rf8 {[%clk 0:02:33]} 17. Kh2 {[%clk 0:02:16]}  Qf6 {[%clk 0:02:32]} 18. Ng1 {[%clk 0:01:55]}  Rh6 {[%clk 0:01:54]} 19. Rf3 {[%clk 0:01:43]}  Rxh4+ {[%clk 0:01:43]} 20. gxh4 {[%clk 0:01:42]}  Qxh4+ {[%clk 0:01:44]} 21. Nh3 {[%clk 0:01:14]}  g5 {[%clk 0:01:33]} 22. Ne3 {[%clk 0:00:54]}  h5 {[%clk 0:01:10]} 23. Ng2 {[%clk 0:00:53]}  Nxg2 {[%clk 0:01:11]} 24. Rxf8+ {[%clk 0:00:50]}  Kxf8 {[%clk 0:01:11]} 25. Kxg2 {[%clk 0:00:51]}  g4 {[%clk 0:01:11]} 26. Ng1 {[%clk 0:00:49]}  Ne7 {[%clk 0:01:10]} 27. Qd2 {[%clk 0:00:45]}  Kg7 {[%clk 0:01:02]} 28. Ne2 {[%clk 0:00:38]}  Qh3+ {[%clk 0:01:01]} 29. Kg1 {[%clk 0:00:38]}  Ng6 {[%clk 0:01:00]} 30. Qg5 {[%clk 0:00:32]}  Kf7 {[%clk 0:00:53]} 31. Qe3 {[%clk 0:00:15]}  Qh4 {[%clk 0:00:31]} 32. d4 {[%clk 0:00:15]}  Kf6 {[%clk 0:00:25]} 33. Rd1 {[%clk 0:00:14]}  exd4 {[%clk 0:00:24]} 34. cxd4 {[%clk 0:00:13]}  e5 {[%clk 0:00:23]} 35. d5 {[%clk 0:00:10]}  Kf7 {[%clk 0:00:11]} 36. b4 {[%clk 0:00:09]}  axb4 {[%clk 0:00:11]} 37. Rb1 {[%clk 0:00:09]}  Qf6 {[%clk 0:00:10]} 38. Rxb4 {[%clk 0:00:08]}  Nf4 {[%clk 0:00:11]} 39. Nxf4 {[%clk 0:00:08]}  exf4 {[%clk 0:00:12]} 40. Qb3 {[%clk 0:00:04]}  b6 {[%clk 0:00:10]} 41. Qc2 {[%clk 0:00:03]}  f3 {[%clk 0:00:09]} 42. Qxc7+ {[%clk 0:00:03]}  Kg6 {[%clk 0:00:08]} 43. Rxb6 {[%clk 0:00:03]}  Qa1+ {[%clk 0:00:08]} 44. Kh2 {[%clk 0:00:03]}  Qe5+ {[%clk 0:00:09]} 45. Kg1 {[%clk 0:00:02]}  Qa1+ {[%clk 0:00:09]} 46. Kh2 {[%clk 0:00:02]}  Qe5+ {[%clk 0:00:07]} 47. Kg1 {[%clk 0:00:02]}  Qa1+ {[%clk 0:00:08]} 1/2-1/2


[Site "https://www.chess.com"]

[Event "Late Titled Tuesday Blitz February 8 2022"]
[White "Peatman, Carter"]
[Black "Calcada, Lucas Galvan"]
[WhiteFideId "2096480"]
[BlackFideId "22746099"]
[WhiteElo "2411"]
[BlackElo "1402"]
[Result "1-0"]
[Round "10"]
[TimeControl "180+1"]
[Date "2022.02.09"]
[WhiteClock "0:02:30"]
[BlackClock "0:02:32"]

1. d4 {[%clk 0:02:58]}  Nf6 {[%clk 0:02:58]} 2. Bf4 {[%clk 0:02:58]}  e6 {[%clk 0:02:56]} 3. e3 {[%clk 0:02:58]}  Bd6 {[%clk 0:02:55]} 4. Bxd6 {[%clk 0:02:57]}  cxd6 {[%clk 0:02:54]} 5. Nf3 {[%clk 0:02:55]}  d5 {[%clk 0:02:54]} 6. c4 {[%clk 0:02:55]}  dxc4 {[%clk 0:02:53]} 7. Bxc4 {[%clk 0:02:55]}  d5 {[%clk 0:02:54]} 8. Bd3 {[%clk 0:02:53]}  O-O {[%clk 0:02:55]} 9. O-O {[%clk 0:02:53]}  Nc6 {[%clk 0:02:55]} 10. Nc3 {[%clk 0:02:51]}  Bd7 {[%clk 0:02:54]} 11. a3 {[%clk 0:02:52]}  Rc8 {[%clk 0:02:52]} 12. Rc1 {[%clk 0:02:52]}  Ne8 {[%clk 0:02:48]} 13. b4 {[%clk 0:02:50]}  Nd6 {[%clk 0:02:48]} 14. Qe2 {[%clk 0:02:50]}  a6 {[%clk 0:02:39]} 15. Rc2 {[%clk 0:02:47]}  b5 {[%clk 0:02:38]} 16. Rfc1 {[%clk 0:02:47]}  Nc4 {[%clk 0:02:38]} 17. Bxc4 {[%clk 0:02:46]}  dxc4 {[%clk 0:02:37]} 18. Ne4 {[%clk 0:02:45]}  Ne7 {[%clk 0:02:35]} 19. Nc5 {[%clk 0:02:43]}  Ra8 {[%clk 0:02:33]} 20. Ne5 {[%clk 0:02:34]}  Nd5 {[%clk 0:02:32]} 21. Nexd7 {[%clk 0:02:30]} 1-0


[Site "https://www.chess.com"]

[Event "Late Titled Tuesday Blitz February 8 2022"]
[White "Postnikov, Daniil"]
[Black "Li, Ben"]
[WhiteFideId "4166329"]
[BlackFideId "2089980"]
[WhiteElo "2261"]
[BlackElo "2267"]
[Result "0-1"]
[Round "10"]
[TimeControl "180+1"]
[Date "2022.02.08"]
[WhiteClock "0:00:05"]
[BlackClock "0:00:09"]

1. e4 {[%clk 0:02:57]}  c5 {[%clk 0:02:59]} 2. Nf3 {[%clk 0:02:57]}  d6 {[%clk 0:02:59]} 3. Bb5+ {[%clk 0:02:56]}  Nd7 {[%clk 0:02:59]} 4. d4 {[%clk 0:02:56]}  cxd4 {[%clk 0:02:59]} 5. Qxd4 {[%clk 0:02:56]}  a6 {[%clk 0:02:59]} 6. Bxd7+ {[%clk 0:02:57]}  Bxd7 {[%clk 0:03:00]} 7. c4 {[%clk 0:02:58]}  e5 {[%clk 0:03:00]} 8. Qd3 {[%clk 0:02:58]}  h6 {[%clk 0:03:00]} 9. Nc3 {[%clk 0:02:58]}  Nf6 {[%clk 0:02:57]} 10. O-O {[%clk 0:02:58]}  Be7 {[%clk 0:02:58]} 11. a4 {[%clk 0:02:59]}  O-O {[%clk 0:02:58]} 12. b3 {[%clk 0:02:59]}  Be6 {[%clk 0:02:45]} 13. Ba3 {[%clk 0:02:58]}  Qc7 {[%clk 0:02:44]} 14. Rfd1 {[%clk 0:02:56]}  Rfd8 {[%clk 0:02:44]} 15. Nd2 {[%clk 0:02:55]}  Rac8 {[%clk 0:02:37]} 16. Nf1 {[%clk 0:02:55]}  Qb8 {[%clk 0:02:34]} 17. Ne3 {[%clk 0:02:53]}  Bf8 {[%clk 0:02:35]} 18. f3 {[%clk 0:02:48]}  g6 {[%clk 0:02:32]} 19. a5 {[%clk 0:02:38]}  Nd7 {[%clk 0:02:29]} 20. Ned5 {[%clk 0:02:23]}  f5 {[%clk 0:02:17]} 21. Qe3 {[%clk 0:02:16]}  Re8 {[%clk 0:02:12]} 22. Na4 {[%clk 0:02:04]}  Rcd8 {[%clk 0:01:44]} 23. Nab6 {[%clk 0:02:01]}  Bg7 {[%clk 0:01:35]} 24. Rd2 {[%clk 0:01:52]}  Kh7 {[%clk 0:01:25]} 25. Rad1 {[%clk 0:01:45]}  Nxb6 {[%clk 0:01:19]} 26. axb6 {[%clk 0:01:29]}  h5 {[%clk 0:01:13]} 27. Nc7 {[%clk 0:01:25]}  Bh6 {[%clk 0:01:09]} 28. Qe2 {[%clk 0:01:01]}  Bxd2 {[%clk 0:01:07]} 29. Qxd2 {[%clk 0:01:01]}  fxe4 {[%clk 0:00:35]} 30. Nxe8 {[%clk 0:00:33]}  Rxe8 {[%clk 0:00:36]} 31. Bxd6 {[%clk 0:00:32]}  Qd8 {[%clk 0:00:35]} 32. fxe4 {[%clk 0:00:28]}  Qxb6+ {[%clk 0:00:35]} 33. c5 {[%clk 0:00:24]}  Qxb3 {[%clk 0:00:35]} 34. Bxe5 {[%clk 0:00:23]}  Qc4 {[%clk 0:00:32]} 35. Qe3 {[%clk 0:00:15]}  Bf7 {[%clk 0:00:26]} 36. Bd4 {[%clk 0:00:10]}  Qb3 {[%clk 0:00:22]} 37. Qd2 {[%clk 0:00:04]}  Rxe4 {[%clk 0:00:20]} 38. h3 {[%clk 0:00:04]}  Qe6 {[%clk 0:00:18]} 39. Kh1 {[%clk 0:00:02]}  Re2 {[%clk 0:00:18]} 40. Qf4 {[%clk 0:00:02]}  Re1+ {[%clk 0:00:15]} 41. Rxe1 {[%clk 0:00:02]}  Qxe1+ {[%clk 0:00:16]} 42. Kh2 {[%clk 0:00:03]}  Qe7 {[%clk 0:00:15]} 43. Be3 {[%clk 0:00:02]}  Be8 {[%clk 0:00:11]} 44. Bd4 {[%clk 0:00:01]}  Kg8 {[%clk 0:00:07]} 45. Bf6 {[%clk 0:00:02]}  Qd7 {[%clk 0:00:06]} 46. Be5 {[%clk 0:00:02]}  Qf7 {[%clk 0:00:06]} 47. Qd4 {[%clk 0:00:02]}  Bc6 {[%clk 0:00:05]} 48. Qd8+ {[%clk 0:00:01]}  Qf8 {[%clk 0:00:06]} 49. Qd6 {[%clk 0:00:02]}  Qxd6 {[%clk 0:00:06]} 50. Bxd6 {[%clk 0:00:02]}  Kf7 {[%clk 0:00:06]} 51. Bc7 {[%clk 0:00:02]}  Ke6 {[%clk 0:00:06]} 52. g3 {[%clk 0:00:02]}  Kd5 {[%clk 0:00:07]} 53. Bb6 {[%clk 0:00:02]}  a5 {[%clk 0:00:07]} 54. Bxa5 {[%clk 0:00:02]}  Kxc5 {[%clk 0:00:07]} 55. Bd2 {[%clk 0:00:02]}  Kc4 {[%clk 0:00:07]} 56. g4 {[%clk 0:00:03]}  hxg4 {[%clk 0:00:07]} 57. hxg4 {[%clk 0:00:04]}  b5 {[%clk 0:00:07]} 58. Kg3 {[%clk 0:00:03]}  b4 {[%clk 0:00:08]} 59. Kf4 {[%clk 0:00:04]}  b3 {[%clk 0:00:09]} 60. Bc1 {[%clk 0:00:04]}  Kd3 {[%clk 0:00:09]} 61. Kg5 {[%clk 0:00:05]}  Be4 {[%clk 0:00:09]} 62. Ba3 {[%clk 0:00:05]}  Kc2 {[%clk 0:00:09]} 0-1


[Site "https://www.chess.com"]

[Event "Late Titled Tuesday Blitz February 8 2022"]
[White "Punin, Andrii"]
[Black "Kanyamarala, Tarun"]
[WhiteFideId "14112639"]
[BlackFideId "45004714"]
[WhiteElo "2357"]
[BlackElo "2144"]
[Result "1-0"]
[Round "10"]
[TimeControl "180+1"]
[Date "2022.02.08"]
[WhiteClock "0:01:15"]
[BlackClock "0:00:49"]

1. e4 {[%clk 0:03:00]}  c5 {[%clk 0:03:00]} 2. Be2 {[%clk 0:03:00]}  Nc6 {[%clk 0:02:58]} 3. f4 {[%clk 0:03:00]}  g6 {[%clk 0:02:58]} 4. Nf3 {[%clk 0:03:00]}  Bg7 {[%clk 0:02:59]} 5. c3 {[%clk 0:03:00]}  Nf6 {[%clk 0:02:57]} 6. d3 {[%clk 0:03:00]}  d6 {[%clk 0:02:58]} 7. O-O {[%clk 0:03:00]}  O-O {[%clk 0:02:58]} 8. Kh1 {[%clk 0:03:00]}  Rb8 {[%clk 0:02:59]} 9. Be3 {[%clk 0:02:59]}  b5 {[%clk 0:02:58]} 10. a3 {[%clk 0:03:00]}  a5 {[%clk 0:02:58]} 11. Nbd2 {[%clk 0:03:00]}  Ba6 {[%clk 0:02:43]} 12. d4 {[%clk 0:02:59]}  cxd4 {[%clk 0:02:41]} 13. cxd4 {[%clk 0:02:58]}  d5 {[%clk 0:02:41]} 14. e5 {[%clk 0:02:55]}  Ne8 {[%clk 0:02:38]} 15. Rc1 {[%clk 0:02:52]}  Rc8 {[%clk 0:02:29]} 16. Nb3 {[%clk 0:02:51]}  e6 {[%clk 0:02:07]} 17. Nc5 {[%clk 0:02:50]}  Ra8 {[%clk 0:01:39]} 18. Nxa6 {[%clk 0:02:40]}  Rxa6 {[%clk 0:01:39]} 19. Bxb5 {[%clk 0:02:40]}  Qa8 {[%clk 0:01:40]} 20. Bxa6 {[%clk 0:02:37]}  Qxa6 {[%clk 0:01:40]} 21. Qc2 {[%clk 0:02:30]}  Ne7 {[%clk 0:01:38]} 22. g4 {[%clk 0:02:22]}  h5 {[%clk 0:01:38]} 23. h3 {[%clk 0:02:22]}  f6 {[%clk 0:01:36]} 24. Kg2 {[%clk 0:02:21]}  fxe5 {[%clk 0:01:34]} 25. fxe5 {[%clk 0:02:21]}  Nc7 {[%clk 0:01:31]} 26. Qxc7 {[%clk 0:02:14]}  Qe2+ {[%clk 0:01:28]} 27. Rf2 {[%clk 0:02:10]}  Qxe3 {[%clk 0:01:27]} 28. Rc3 {[%clk 0:02:06]}  Qf4 {[%clk 0:01:26]} 29. Qxe7 {[%clk 0:01:59]}  Rf7 {[%clk 0:01:11]} 30. Qxe6 {[%clk 0:01:59]}  h4 {[%clk 0:01:12]} 31. Rc8+ {[%clk 0:01:51]}  Kh7 {[%clk 0:01:11]} 32. Qxf7 {[%clk 0:01:49]}  Qg3+ {[%clk 0:01:08]} 33. Kf1 {[%clk 0:01:49]}  Qxh3+ {[%clk 0:01:08]} 34. Ke1 {[%clk 0:01:44]}  Qxg4 {[%clk 0:01:07]} 35. Rc3 {[%clk 0:01:21]}  Kh6 {[%clk 0:00:55]} 36. Qe7 {[%clk 0:01:16]}  g5 {[%clk 0:00:48]} 37. Qxg5+ {[%clk 0:01:15]}  Qxg5 {[%clk 0:00:48]} 38. Nxg5 {[%clk 0:01:15]}  Kxg5 {[%clk 0:00:49]} 39. Rg2+ {[%clk 0:01:15]} 1-0


[Site "https://www.chess.com"]